[Event "Titled Tuesday Blitz February 01 A 2022"]
[White "Svane, Frederik"]
[Black "Pranav, V"]
[WhiteFideId "12923044"]
[BlackFideId "25060783"]
[WhiteElo "2459"]
[BlackElo "2349"]
[Result "1/2-1/2"]
[Round "10"]
[TimeControl "180+1"]
[Date "2022.02.01"]
[WhiteClock "0:00:14"]
[BlackClock "0:00:19"]

1. b3 {[%clk 0:03:00]}  e5 {[%clk 0:02:59]} 2. Bb2 {[%clk 0:03:01]}  Nc6 {[%clk 0:03:00]} 3. e3 {[%clk 0:03:01]}  g6 {[%clk 0:02:59]} 4. Bb5 {[%clk 0:02:58]}  Bg7 {[%clk 0:03:00]} 5. Nf3 {[%clk 0:02:59]}  Nge7 {[%clk 0:02:59]} 6. O-O {[%clk 0:02:58]}  O-O {[%clk 0:02:59]} 7. d4 {[%clk 0:02:58]}  e4 {[%clk 0:02:58]} 8. Nfd2 {[%clk 0:02:58]}  d5 {[%clk 0:02:58]} 9. c4 {[%clk 0:02:58]}  f5 {[%clk 0:02:58]} 10. cxd5 {[%clk 0:02:36]}  Nxd5 {[%clk 0:02:57]} 11. Nc3 {[%clk 0:02:31]}  Nce7 {[%clk 0:02:53]} 12. Rc1 {[%clk 0:02:24]}  c6 {[%clk 0:02:51]} 13. Bc4 {[%clk 0:02:24]}  Qd6 {[%clk 0:02:50]} 14. Ndb1 {[%clk 0:02:19]}  Be6 {[%clk 0:02:46]} 15. Ba3 {[%clk 0:02:17]}  Qd7 {[%clk 0:02:46]} 16. Nxd5 {[%clk 0:02:14]}  cxd5 {[%clk 0:02:43]} 17. Bb5 {[%clk 0:02:12]}  Qd8 {[%clk 0:02:22]} 18. f4 {[%clk 0:02:12]}  exf3 {[%clk 0:02:20]} 19. Qxf3 {[%clk 0:02:10]}  Rf7 {[%clk 0:02:14]} 20. Nc3 {[%clk 0:02:04]}  f4 {[%clk 0:02:03]} 21. Bxe7 {[%clk 0:01:51]}  Qxe7 {[%clk 0:01:27]} 22. Nxd5 {[%clk 0:01:51]}  Bxd5 {[%clk 0:00:57]} 23. Qxd5 {[%clk 0:01:52]}  Kh8 {[%clk 0:00:56]} 24. exf4 {[%clk 0:01:24]}  Rf5 {[%clk 0:00:49]} 25. Qd7 {[%clk 0:01:19]}  Qe3+ {[%clk 0:00:39]} 26. Kh1 {[%clk 0:01:19]}  Rxf4 {[%clk 0:00:39]} 27. Rxf4 {[%clk 0:01:08]}  Qxc1+ {[%clk 0:00:20]} 28. Rf1 {[%clk 0:01:08]}  Qg5 {[%clk 0:00:20]} 29. Qxb7 {[%clk 0:01:04]}  Rd8 {[%clk 0:00:20]} 30. Bc4 {[%clk 0:01:00]}  Bxd4 {[%clk 0:00:17]} 31. Rd1 {[%clk 0:00:34]}  Bb6 {[%clk 0:00:12]} 32. Rxd8+ {[%clk 0:00:30]}  Qxd8 {[%clk 0:00:13]} 33. Qf3 {[%clk 0:00:27]}  Kg7 {[%clk 0:00:10]} 34. g3 {[%clk 0:00:24]}  Qd4 {[%clk 0:00:09]} 35. Qf7+ {[%clk 0:00:17]}  Kh6 {[%clk 0:00:09]} 36. Qf8+ {[%clk 0:00:18]}  Qg7 {[%clk 0:00:09]} 37. Qf4+ {[%clk 0:00:18]}  g5 {[%clk 0:00:10]} 38. Qd6+ {[%clk 0:00:18]}  Qg6 {[%clk 0:00:09]} 39. Qxg6+ {[%clk 0:00:19]}  Kxg6 {[%clk 0:00:10]} 40. Kg2 {[%clk 0:00:19]}  h5 {[%clk 0:00:08]} 41. Kf3 {[%clk 0:00:19]}  h4 {[%clk 0:00:08]} 42. g4 {[%clk 0:00:16]}  Kf6 {[%clk 0:00:08]} 43. Ke4 {[%clk 0:00:16]}  Bg1 {[%clk 0:00:06]} 44. h3 {[%clk 0:00:16]}  Ke7 {[%clk 0:00:07]} 45. Kd5 {[%clk 0:00:14]}  Kd7 {[%clk 0:00:07]} 46. Ke4 {[%clk 0:00:13]}  Kc7 {[%clk 0:00:08]} 47. a4 {[%clk 0:00:12]}  a5 {[%clk 0:00:07]} 48. Kd5 {[%clk 0:00:10]}  Kb6 {[%clk 0:00:07]} 49. Bd3 {[%clk 0:00:10]}  Be3 {[%clk 0:00:07]} 50. Be4 {[%clk 0:00:11]}  Bf4 {[%clk 0:00:08]} 51. Kc4 {[%clk 0:00:11]}  Bd2 {[%clk 0:00:09]} 52. Kd5 {[%clk 0:00:12]}  Bf4 {[%clk 0:00:09]} 53. Kd4 {[%clk 0:00:13]}  Bd2 {[%clk 0:00:10]} 54. Kd3 {[%clk 0:00:13]}  Bf4 {[%clk 0:00:10]} 55. Kc4 {[%clk 0:00:14]}  Bd6 {[%clk 0:00:10]} 56. Bd5 {[%clk 0:00:15]}  Bf4 {[%clk 0:00:11]} 57. Be6 {[%clk 0:00:16]}  Bd2 {[%clk 0:00:11]} 58. Bf5 {[%clk 0:00:16]}  Bb4 {[%clk 0:00:11]} 59. Kd3 {[%clk 0:00:15]}  Be1 {[%clk 0:00:12]} 60. Be6 {[%clk 0:00:15]}  Bb4 {[%clk 0:00:13]} 61. Bc4 {[%clk 0:00:15]}  Be1 {[%clk 0:00:14]} 62. Ke3 {[%clk 0:00:16]}  Bb4 {[%clk 0:00:14]} 63. Kd4 {[%clk 0:00:17]}  Be1 {[%clk 0:00:15]} 64. Ke5 {[%clk 0:00:18]}  Bb4 {[%clk 0:00:15]} 65. Kf5 {[%clk 0:00:18]}  Bd2 {[%clk 0:00:15]} 66. Ke4 {[%clk 0:00:19]}  Kc5 {[%clk 0:00:16]} 67. Kd3 {[%clk 0:00:19]}  Bf4 {[%clk 0:00:16]} 68. Ke4 {[%clk 0:00:20]}  Kb4 {[%clk 0:00:16]} 69. Kd5 {[%clk 0:00:20]}  Bg3 {[%clk 0:00:15]} 70. Kc6 {[%clk 0:00:21]}  Bf4 {[%clk 0:00:16]} 71. Kb6 {[%clk 0:00:21]}  Bg3 {[%clk 0:00:17]} 72. Kc6 {[%clk 0:00:21]}  Bf4 {[%clk 0:00:18]} 73. Kb6 {[%clk 0:00:20]}  Bg3 {[%clk 0:00:19]} 74. Kc6 {[%clk 0:00:14]} 1/2-1/2


[Site "https://www.chess.com"]

[Event "Titled Tuesday Blitz February 01 A 2022"]
[White "Szpar, Milosz"]
[Black "Willow, Jonah B"]
[WhiteFideId "1184989"]
[BlackFideId "438804"]
[WhiteElo "2447"]
[BlackElo "2261"]
[Result "1-0"]
[Round "10"]
[TimeControl "180+1"]
[Date "2022.02.01"]
[WhiteClock "0:00:39"]
[BlackClock "0:00:28"]

1. e4 {[%clk 0:03:00]}  c5 {[%clk 0:03:00]} 2. Nf3 {[%clk 0:03:00]}  Nc6 {[%clk 0:03:01]} 3. d4 {[%clk 0:03:00]}  cxd4 {[%clk 0:03:02]} 4. Nxd4 {[%clk 0:03:01]}  g6 {[%clk 0:03:03]} 5. c4 {[%clk 0:02:57]}  Nf6 {[%clk 0:03:02]} 6. Nc3 {[%clk 0:02:57]}  d6 {[%clk 0:03:03]} 7. Be2 {[%clk 0:02:55]}  Nxd4 {[%clk 0:03:03]} 8. Qxd4 {[%clk 0:02:55]}  Bg7 {[%clk 0:03:04]} 9. O-O {[%clk 0:02:54]}  O-O {[%clk 0:03:04]} 10. Qd3 {[%clk 0:02:54]}  Nd7 {[%clk 0:02:51]} 11. Be3 {[%clk 0:02:54]}  Nc5 {[%clk 0:02:50]} 12. Qc2 {[%clk 0:02:54]}  Bxc3 {[%clk 0:02:50]} 13. Qxc3 {[%clk 0:02:55]}  Nxe4 {[%clk 0:02:48]} 14. Qd4 {[%clk 0:02:55]}  Nf6 {[%clk 0:02:49]} 15. Bf3 {[%clk 0:02:55]}  Re8 {[%clk 0:02:37]} 16. Rfd1 {[%clk 0:02:54]}  Qa5 {[%clk 0:02:32]} 17. a3 {[%clk 0:02:49]}  a6 {[%clk 0:02:18]} 18. b4 {[%clk 0:02:49]}  Qe5 {[%clk 0:02:17]} 19. h3 {[%clk 0:02:48]}  Rb8 {[%clk 0:02:15]} 20. Qh4 {[%clk 0:02:17]}  Bd7 {[%clk 0:01:46]} 21. Ba7 {[%clk 0:02:08]}  Rbc8 {[%clk 0:01:25]} 22. Bxb7 {[%clk 0:01:24]}  Rc7 {[%clk 0:01:21]} 23. Bd4 {[%clk 0:01:24]}  Qe6 {[%clk 0:01:04]} 24. Bxa6 {[%clk 0:01:18]}  d5 {[%clk 0:00:57]} 25. Bb5 {[%clk 0:01:13]}  dxc4 {[%clk 0:00:55]} 26. Re1 {[%clk 0:01:08]}  Qd5 {[%clk 0:00:45]} 27. Bxf6 {[%clk 0:01:05]}  Bxb5 {[%clk 0:00:41]} 28. Bxe7 {[%clk 0:00:48]}  c3 {[%clk 0:00:28]} 29. Bf6 {[%clk 0:00:43]}  c2 {[%clk 0:00:28]} 30. Qh6 {[%clk 0:00:39]} 1-0


[Site "https://www.chess.com"]

[Event "Titled Tuesday Blitz February 01 A 2022"]
[White "Zhigalko, Sergei"]
[Black "Barrientos, Sergio E"]
[WhiteFideId "13502956"]
[BlackFideId "4401824"]
[WhiteElo "2662"]
[BlackElo "2441"]
[Result "1-0"]
[Round "10"]
[TimeControl "180+1"]
[Date "2022.02.01"]
[WhiteClock "0:00:06"]
[BlackClock "0:00:34"]

1. e4 {[%clk 0:03:00]}  c5 {[%clk 0:02:59]} 2. Nf3 {[%clk 0:03:01]}  e6 {[%clk 0:02:59]} 3. c3 {[%clk 0:03:01]}  d5 {[%clk 0:02:55]} 4. e5 {[%clk 0:03:01]}  d4 {[%clk 0:02:47]} 5. Bd3 {[%clk 0:02:59]}  Bd7 {[%clk 0:02:47]} 6. O-O {[%clk 0:02:56]}  Bc6 {[%clk 0:02:46]} 7. Re1 {[%clk 0:02:57]}  Ne7 {[%clk 0:02:44]} 8. b4 {[%clk 0:02:56]}  b6 {[%clk 0:02:34]} 9. bxc5 {[%clk 0:02:29]}  bxc5 {[%clk 0:02:34]} 10. Na3 {[%clk 0:02:11]}  Ng6 {[%clk 0:02:27]} 11. cxd4 {[%clk 0:01:25]}  cxd4 {[%clk 0:02:27]} 12. Nb5 {[%clk 0:01:25]}  Bc5 {[%clk 0:02:18]} 13. Qc2 {[%clk 0:01:18]}  Nd7 {[%clk 0:01:55]} 14. Nfxd4 {[%clk 0:01:06]}  Bd5 {[%clk 0:01:49]} 15. Nb3 {[%clk 0:00:31]}  Bxf2+ {[%clk 0:01:30]} 16. Kxf2 {[%clk 0:00:23]}  Qh4+ {[%clk 0:01:30]} 17. Kf1 {[%clk 0:00:15]}  Bxg2+ {[%clk 0:00:58]} 18. Kxg2 {[%clk 0:00:14]}  Nf4+ {[%clk 0:00:57]} 19. Kf3 {[%clk 0:00:12]}  Qxe1 {[%clk 0:00:57]} 20. Kxf4 {[%clk 0:00:07]}  g5+ {[%clk 0:00:54]} 21. Kf3 {[%clk 0:00:04]}  Qh1+ {[%clk 0:00:52]} 22. Ke2 {[%clk 0:00:04]}  Qxh2+ {[%clk 0:00:50]} 23. Ke3 {[%clk 0:00:04]}  Qxe5+ {[%clk 0:00:47]} 24. Kf2 {[%clk 0:00:02]}  Qh2+ {[%clk 0:00:47]} 25. Ke1 {[%clk 0:00:02]}  Qg3+ {[%clk 0:00:47]} 26. Kd1 {[%clk 0:00:02]}  Qg4+ {[%clk 0:00:43]} 27. Ke1 {[%clk 0:00:02]}  Ne5 {[%clk 0:00:38]} 28. Be4 {[%clk 0:00:01]}  Qg1+ {[%clk 0:00:38]} 29. Ke2 {[%clk 0:00:01]}  Qh2+ {[%clk 0:00:38]} 30. Kf1 {[%clk 0:00:01]}  Qf4+ {[%clk 0:00:37]} 31. Kg1 {[%clk 0:00:01]}  Qg3+ {[%clk 0:00:37]} 32. Kf1 {[%clk 0:00:01]}  Qf4+ {[%clk 0:00:37]} 33. Ke1 {[%clk 0:00:02]}  Ng4 {[%clk 0:00:36]} 34. Qc6+ {[%clk 0:00:01]}  Ke7 {[%clk 0:00:35]} 35. Ba3+ {[%clk 0:00:02]}  Kf6 {[%clk 0:00:34]} 36. Bb2+ {[%clk 0:00:02]}  Ke7 {[%clk 0:00:34]} 37. Bf3 {[%clk 0:00:02]}  Qg3+ {[%clk 0:00:33]} 38. Kd1 {[%clk 0:00:02]}  Nf2+ {[%clk 0:00:33]} 39. Ke2 {[%clk 0:00:02]}  Rhd8 {[%clk 0:00:32]} 40. Qc7+ {[%clk 0:00:03]}  Qxc7 {[%clk 0:00:31]} 41. Nxc7 {[%clk 0:00:04]}  Nd3 {[%clk 0:00:32]} 42. Nxa8 {[%clk 0:00:03]}  Nf4+ {[%clk 0:00:32]} 43. Ke3 {[%clk 0:00:03]}  Rd3+ {[%clk 0:00:31]} 44. Kf2 {[%clk 0:00:03]}  f5 {[%clk 0:00:32]} 45. Ba3+ {[%clk 0:00:04]}  Kf6 {[%clk 0:00:32]} 46. Nc7 {[%clk 0:00:04]}  g4 {[%clk 0:00:32]} 47. Bh1 {[%clk 0:00:04]}  g3+ {[%clk 0:00:32]} 48. Kf1 {[%clk 0:00:04]}  h5 {[%clk 0:00:32]} 49. Re1 {[%clk 0:00:04]}  h4 {[%clk 0:00:32]} 50. Bb2+ {[%clk 0:00:05]}  Kg5 {[%clk 0:00:32]} 51. Be5 {[%clk 0:00:05]}  h3 {[%clk 0:00:32]} 52. Bxf4+ {[%clk 0:00:06]}  Kxf4 {[%clk 0:00:33]} 53. Nxe6+ {[%clk 0:00:06]}  Kg4 {[%clk 0:00:33]} 54. Nec5 {[%clk 0:00:06]}  Rd8 {[%clk 0:00:32]} 55. Ne6 {[%clk 0:00:05]}  f4 {[%clk 0:00:33]} 56. Nxd8 {[%clk 0:00:05]}  f3 {[%clk 0:00:33]} 57. Re4+ {[%clk 0:00:06]}  Kf5 {[%clk 0:00:33]} 58. Bxf3 {[%clk 0:00:06]}  g2+ {[%clk 0:00:34]} 59. Bxg2 {[%clk 0:00:06]} 1-0


[Site "https://www.chess.com"]

[Event "Titled Tuesday Blitz February 01 A 2022"]
[White "Andreikin, Dmitry"]
[Black "Indjic, Aleksandar"]
[WhiteFideId "4158814"]
[BlackFideId "911925"]
[WhiteElo "2736"]
[BlackElo "2616"]
[Result "1-0"]
[Round "11"]
[TimeControl "180+1"]
[Date "2022.02.01"]
[WhiteClock "0:00:06"]
[BlackClock "0:00:06"]

1. d4 {[%clk 0:03:00]}  d5 {[%clk 0:02:59]} 2. Nf3 {[%clk 0:03:00]}  e6 {[%clk 0:02:59]} 3. Bf4 {[%clk 0:02:59]}  c5 {[%clk 0:02:56]} 4. e3 {[%clk 0:02:59]}  Nf6 {[%clk 0:02:56]} 5. Nbd2 {[%clk 0:02:58]}  Qb6 {[%clk 0:02:52]} 6. Rb1 {[%clk 0:02:54]}  Bd6 {[%clk 0:02:52]} 7. Bg3 {[%clk 0:02:54]}  O-O {[%clk 0:02:50]} 8. c3 {[%clk 0:02:54]}  Nbd7 {[%clk 0:02:45]} 9. Bd3 {[%clk 0:02:50]}  Qc7 {[%clk 0:02:43]} 10. dxc5 {[%clk 0:02:43]}  Nxc5 {[%clk 0:02:42]} 11. Bc2 {[%clk 0:02:43]}  e5 {[%clk 0:02:42]} 12. O-O {[%clk 0:02:43]}  Bg4 {[%clk 0:02:40]} 13. h3 {[%clk 0:02:42]}  Bh5 {[%clk 0:02:40]} 14. Qc1 {[%clk 0:02:41]}  b5 {[%clk 0:02:29]} 15. Nh4 {[%clk 0:02:40]}  Rfe8 {[%clk 0:02:22]} 16. Nf5 {[%clk 0:02:40]}  Bf8 {[%clk 0:02:21]} 17. Bh2 {[%clk 0:02:37]}  Bg6 {[%clk 0:02:20]} 18. Qd1 {[%clk 0:02:36]}  Rad8 {[%clk 0:02:15]} 19. Nf3 {[%clk 0:02:33]}  a5 {[%clk 0:02:02]} 20. N3h4 {[%clk 0:02:31]}  Qb6 {[%clk 0:01:55]} 21. Qf3 {[%clk 0:02:27]}  Nfe4 {[%clk 0:01:48]} 22. Rfd1 {[%clk 0:02:25]}  b4 {[%clk 0:01:48]} 23. c4 {[%clk 0:02:17]}  Nf6 {[%clk 0:00:58]} 24. cxd5 {[%clk 0:02:16]}  e4 {[%clk 0:00:58]} 25. Qe2 {[%clk 0:02:13]}  a4 {[%clk 0:00:58]} 26. Rbc1 {[%clk 0:01:55]}  b3 {[%clk 0:00:57]} 27. axb3 {[%clk 0:01:55]}  axb3 {[%clk 0:00:57]} 28. Bb1 {[%clk 0:01:55]}  Nxd5 {[%clk 0:00:57]} 29. Nxg6 {[%clk 0:01:48]}  hxg6 {[%clk 0:00:57]} 30. Nd4 {[%clk 0:01:47]}  Nb4 {[%clk 0:00:56]} 31. Rc3 {[%clk 0:01:40]}  Nbd3 {[%clk 0:00:47]} 32. Bg3 {[%clk 0:01:28]}  Rd7 {[%clk 0:00:41]} 33. h4 {[%clk 0:01:25]}  Ra8 {[%clk 0:00:17]} 34. Bxd3 {[%clk 0:01:13]}  exd3 {[%clk 0:00:18]} 35. Qg4 {[%clk 0:01:13]}  Rda7 {[%clk 0:00:15]} 36. Kh2 {[%clk 0:00:48]}  Ra1 {[%clk 0:00:14]} 37. Rdxd3 {[%clk 0:00:47]}  Nxd3 {[%clk 0:00:13]} 38. Rxd3 {[%clk 0:00:47]}  Qa6 {[%clk 0:00:12]} 39. Qe2 {[%clk 0:00:39]}  Qc4 {[%clk 0:00:05]} 40. Rc3 {[%clk 0:00:33]}  Qxe2 {[%clk 0:00:04]} 41. Nxe2 {[%clk 0:00:34]}  Re1 {[%clk 0:00:03]} 42. Nd4 {[%clk 0:00:35]}  Raa1 {[%clk 0:00:02]} 43. Bf4 {[%clk 0:00:35]}  Rh1+ {[%clk 0:00:02]} 44. Kg3 {[%clk 0:00:35]}  Rhc1 {[%clk 0:00:02]} 45. Rxb3 {[%clk 0:00:32]}  Rc8 {[%clk 0:00:03]} 46. Rb7 {[%clk 0:00:32]}  Rb1 {[%clk 0:00:02]} 47. b3 {[%clk 0:00:29]}  Bc5 {[%clk 0:00:02]} 48. Nf3 {[%clk 0:00:28]}  Bf8 {[%clk 0:00:02]} 49. Ne5 {[%clk 0:00:28]}  Bd6 {[%clk 0:00:02]} 50. Nxf7 {[%clk 0:00:18]}  Bxf4+ {[%clk 0:00:02]} 51. exf4 {[%clk 0:00:18]}  Rc3+ {[%clk 0:00:02]} 52. Kg4 {[%clk 0:00:15]}  Rcxb3 {[%clk 0:00:03]} 53. Rd7 {[%clk 0:00:12]}  Rb7 {[%clk 0:00:03]} 54. Rxb7 {[%clk 0:00:12]}  Rxb7 {[%clk 0:00:04]} 55. Ne5 {[%clk 0:00:12]}  Kh7 {[%clk 0:00:04]} 56. f3 {[%clk 0:00:10]}  Rb2 {[%clk 0:00:04]} 57. g3 {[%clk 0:00:10]}  Rg2 {[%clk 0:00:04]} 58. Kh3 {[%clk 0:00:10]}  Re2 {[%clk 0:00:04]} 59. Kg4 {[%clk 0:00:10]}  Rg2 {[%clk 0:00:04]} 60. Nf7 {[%clk 0:00:10]}  Kg8 {[%clk 0:00:03]} 61. Ng5 {[%clk 0:00:11]}  Kf8 {[%clk 0:00:04]} 62. Ne4 {[%clk 0:00:10]}  Kg8 {[%clk 0:00:02]} 63. Kg5 {[%clk 0:00:11]}  Kh7 {[%clk 0:00:03]} 64. Kg4 {[%clk 0:00:08]}  Rc2 {[%clk 0:00:02]} 65. Nd6 {[%clk 0:00:08]}  Kg8 {[%clk 0:00:02]} 66. Nb5 {[%clk 0:00:07]}  Kh7 {[%clk 0:00:02]} 67. Nd4 {[%clk 0:00:07]}  Rc5 {[%clk 0:00:03]} 68. Ne6 {[%clk 0:00:07]}  Ra5 {[%clk 0:00:03]} 69. Nd8 {[%clk 0:00:06]}  Kg8 {[%clk 0:00:03]} 70. Nc6 {[%clk 0:00:07]}  Rc5 {[%clk 0:00:02]} 71. Ne5 {[%clk 0:00:07]}  Kh7 {[%clk 0:00:03]} 72. Kg5 {[%clk 0:00:07]}  Ra5 {[%clk 0:00:03]} 73. Kg4 {[%clk 0:00:05]}  Rc5 {[%clk 0:00:03]} 74. Nd3 {[%clk 0:00:06]}  Rd5 {[%clk 0:00:03]} 75. Nf2 {[%clk 0:00:06]}  Rc5 {[%clk 0:00:03]} 76. Nh3 {[%clk 0:00:06]}  Rd5 {[%clk 0:00:04]} 77. Ng5+ {[%clk 0:00:07]}  Kg8 {[%clk 0:00:04]} 78. Ne6 {[%clk 0:00:07]}  Ra5 {[%clk 0:00:04]} 79. Nd8 {[%clk 0:00:06]}  Kh7 {[%clk 0:00:05]} 80. Nc6 {[%clk 0:00:05]}  Rc5 {[%clk 0:00:05]} 81. Ne5 {[%clk 0:00:06]}  Ra5 {[%clk 0:00:06]} 82. Kg5 {[%clk 0:00:06]}  Rc5 {[%clk 0:00:06]} 83. g4 {[%clk 0:00:06]}  Ra5 {[%clk 0:00:06]} 84. h5 {[%clk 0:00:06]}  gxh5 {[%clk 0:00:07]} 85. Kxh5 {[%clk 0:00:06]}  Rc5 {[%clk 0:00:06]} 86. Kg5 {[%clk 0:00:07]}  Ra5 {[%clk 0:00:06]} 87. Kf5 {[%clk 0:00:07]}  Ra6 {[%clk 0:00:06]} 88. g5 {[%clk 0:00:05]}  g6+ {[%clk 0:00:07]} 89. Kg4 {[%clk 0:00:05]}  Kg7 {[%clk 0:00:07]} 90. f5 {[%clk 0:00:05]}  Ra5 {[%clk 0:00:06]} 91. f6+ {[%clk 0:00:04]}  Kh7 {[%clk 0:00:05]} 92. f4 {[%clk 0:00:04]}  Ra4 {[%clk 0:00:05]} 93. Nd7 {[%clk 0:00:04]}  Kg8 {[%clk 0:00:03]} 94. Ne5 {[%clk 0:00:04]}  Kh7 {[%clk 0:00:03]} 95. Kf3 {[%clk 0:00:05]}  Rb4 {[%clk 0:00:03]} 96. Ke3 {[%clk 0:00:05]}  Ra4 {[%clk 0:00:04]} 97. Nd7 {[%clk 0:00:05]}  Kg8 {[%clk 0:00:04]} 98. Nc5 {[%clk 0:00:05]}  Rc4 {[%clk 0:00:03]} 99. Nd3 {[%clk 0:00:05]}  Kh7 {[%clk 0:00:02]} 100. Ne5 {[%clk 0:00:06]}  Ra4 {[%clk 0:00:02]} 101. Nf3 {[%clk 0:00:06]}  Kg8 {[%clk 0:00:03]} 102. Nd4 {[%clk 0:00:07]}  Kf7 {[%clk 0:00:03]} 103. Ke4 {[%clk 0:00:07]}  Ra5 {[%clk 0:00:02]} 104. Nc6 {[%clk 0:00:07]}  Ra4+ {[%clk 0:00:03]} 105. Ke5 {[%clk 0:00:07]}  Kf8 {[%clk 0:00:02]} 106. Nd4 {[%clk 0:00:07]}  Ra5+ {[%clk 0:00:03]} 107. Ke6 {[%clk 0:00:07]}  Ra4 {[%clk 0:00:03]} 108. Kd5 {[%clk 0:00:07]}  Ra5+ {[%clk 0:00:03]} 109. Kc6 {[%clk 0:00:07]}  Ra4 {[%clk 0:00:03]} 110. Kc5 {[%clk 0:00:06]}  Kf7 {[%clk 0:00:04]} 111. Kd5 {[%clk 0:00:06]}  Ra5+ {[%clk 0:00:04]} 112. Ke4 {[%clk 0:00:06]}  Ra4 {[%clk 0:00:04]} 113. Ke3 {[%clk 0:00:06]}  Ra3+ {[%clk 0:00:05]} 114. Ke2 {[%clk 0:00:06]}  Ra4 {[%clk 0:00:05]} 115. Kd3 {[%clk 0:00:07]}  Ra3+ {[%clk 0:00:05]} 116. Ke4 {[%clk 0:00:07]}  Ra4 {[%clk 0:00:06]} 117. Kd5 {[%clk 0:00:07]}  Ra5+ {[%clk 0:00:06]} 118. Kd6 {[%clk 0:00:07]}  Ra4 {[%clk 0:00:06]} 119. Nc6 {[%clk 0:00:07]}  Rxf4 {[%clk 0:00:04]} 120. Ne5+ {[%clk 0:00:07]}  Kg8 {[%clk 0:00:05]} 121. Nxg6 {[%clk 0:00:05]}  Rg4 {[%clk 0:00:05]} 122. Ke6 {[%clk 0:00:04]}  Re4+ {[%clk 0:00:04]} 123. Ne5 {[%clk 0:00:05]}  Rf4 {[%clk 0:00:03]} 124. g6 {[%clk 0:00:05]}  Kh8 {[%clk 0:00:03]} 125. Nf7+ {[%clk 0:00:04]}  Kg8 {[%clk 0:00:04]} 126. Nh6+ {[%clk 0:00:05]}  Kh8 {[%clk 0:00:04]} 127. g7+ {[%clk 0:00:05]}  Kh7 {[%clk 0:00:04]} 128. g8=Q+ {[%clk 0:00:06]}  Kxh6 {[%clk 0:00:05]} 129. f7 {[%clk 0:00:06]}  Rxf7 {[%clk 0:00:06]} 130. Qxf7 {[%clk 0:00:06]} 1-0


[Site "https://www.chess.com"]

[Event "Titled Tuesday Blitz February 01 A 2022"]
[White "Arabidze, Meri"]
[Black "Dobrov, Vladimir"]
[WhiteFideId "13604040"]
[BlackFideId "4136594"]
[WhiteElo "2329"]
[BlackElo "2614"]
[Result "0-1"]
[Round "11"]
[TimeControl "180+1"]
[Date "2022.02.01"]
[WhiteClock "0:00:08"]
[BlackClock "0:00:09"]

1. d4 {[%clk 0:03:00]}  Nf6 {[%clk 0:02:30]} 2. Nf3 {[%clk 0:03:01]}  e6 {[%clk 0:02:20]} 3. c4 {[%clk 0:03:00]}  d5 {[%clk 0:02:19]} 4. g3 {[%clk 0:02:58]}  Bb4+ {[%clk 0:02:19]} 5. Bd2 {[%clk 0:02:58]}  Be7 {[%clk 0:02:19]} 6. Bg2 {[%clk 0:02:58]}  O-O {[%clk 0:02:20]} 7. O-O {[%clk 0:02:59]}  Nbd7 {[%clk 0:02:19]} 8. Qc2 {[%clk 0:02:58]}  c6 {[%clk 0:02:19]} 9. Bf4 {[%clk 0:02:55]}  Nh5 {[%clk 0:02:18]} 10. Bc1 {[%clk 0:02:53]}  Nhf6 {[%clk 0:02:18]} 11. b3 {[%clk 0:02:52]}  b6 {[%clk 0:02:18]} 12. Bb2 {[%clk 0:02:51]}  Ba6 {[%clk 0:02:19]} 13. Rd1 {[%clk 0:02:48]}  Rc8 {[%clk 0:02:18]} 14. Nc3 {[%clk 0:02:48]}  Rc7 {[%clk 0:01:43]} 15. Nd2 {[%clk 0:02:38]}  b5 {[%clk 0:01:30]} 16. c5 {[%clk 0:02:23]}  b4 {[%clk 0:01:30]} 17. Na4 {[%clk 0:02:19]}  Bxe2 {[%clk 0:01:30]} 18. Re1 {[%clk 0:02:19]}  Bb5 {[%clk 0:01:30]} 19. Nf3 {[%clk 0:02:14]}  Re8 {[%clk 0:01:09]} 20. Bc1 {[%clk 0:02:10]}  Ne4 {[%clk 0:01:07]} 21. Nd2 {[%clk 0:02:01]}  Nxd2 {[%clk 0:01:06]} 22. Bxd2 {[%clk 0:02:01]}  Rb7 {[%clk 0:01:02]} 23. f4 {[%clk 0:01:36]}  g6 {[%clk 0:00:56]} 24. Nb2 {[%clk 0:01:32]}  Bf6 {[%clk 0:00:55]} 25. Be3 {[%clk 0:01:32]}  a5 {[%clk 0:00:55]} 26. a3 {[%clk 0:01:29]}  bxa3 {[%clk 0:00:54]} 27. Rxa3 {[%clk 0:01:29]}  Ra7 {[%clk 0:00:21]} 28. Rea1 {[%clk 0:01:28]}  Qc7 {[%clk 0:00:18]} 29. Bf1 {[%clk 0:01:10]}  Bxf1 {[%clk 0:00:17]} 30. Kxf1 {[%clk 0:01:11]}  Rb8 {[%clk 0:00:17]} 31. Qc3 {[%clk 0:01:08]}  Rb5 {[%clk 0:00:16]} 32. Kf2 {[%clk 0:01:02]}  Nxc5 {[%clk 0:00:15]} 33. Kf3 {[%clk 0:00:56]}  Ne4 {[%clk 0:00:15]} 34. Qd3 {[%clk 0:00:52]}  Qb6 {[%clk 0:00:14]} 35. Na4 {[%clk 0:00:51]}  Qb7 {[%clk 0:00:14]} 36. R1a2 {[%clk 0:00:43]}  h5 {[%clk 0:00:13]} 37. h3 {[%clk 0:00:33]}  c5 {[%clk 0:00:13]} 38. dxc5 {[%clk 0:00:20]}  Qc6 {[%clk 0:00:13]} 39. Bd4 {[%clk 0:00:18]}  Bxd4 {[%clk 0:00:11]} 40. Qxd4 {[%clk 0:00:19]}  Rb4 {[%clk 0:00:12]} 41. Qe3 {[%clk 0:00:16]}  Rab7 {[%clk 0:00:12]} 42. g4 {[%clk 0:00:14]}  h4 {[%clk 0:00:10]} 43. g5 {[%clk 0:00:14]}  e5 {[%clk 0:00:10]} 44. fxe5 {[%clk 0:00:13]}  Qe6 {[%clk 0:00:10]} 45. Kg2 {[%clk 0:00:13]}  Qf5 {[%clk 0:00:08]} 46. c6 {[%clk 0:00:12]}  Rc7 {[%clk 0:00:08]} 47. Ra1 {[%clk 0:00:10]}  Rxc6 {[%clk 0:00:06]} 48. R3a2 {[%clk 0:00:10]}  Qxe5 {[%clk 0:00:06]} 49. Rf1 {[%clk 0:00:08]}  Qxg5+ {[%clk 0:00:05]} 50. Qxg5 {[%clk 0:00:08]}  Nxg5 {[%clk 0:00:06]} 51. Rd2 {[%clk 0:00:07]}  Rxb3 {[%clk 0:00:07]} 52. Rxd5 {[%clk 0:00:08]}  Rc2+ {[%clk 0:00:07]} 53. Rf2 {[%clk 0:00:07]}  Rg3+ {[%clk 0:00:07]} 54. Kf1 {[%clk 0:00:07]}  Rxf2+ {[%clk 0:00:07]} 55. Kxf2 {[%clk 0:00:08]}  Nxh3+ {[%clk 0:00:08]} 56. Ke2 {[%clk 0:00:08]}  Nf4+ {[%clk 0:00:09]} 0-1


[Site "https://www.chess.com"]